fUST/lending_fUST_20241016
["ID","MTS","AMOUNT","RATE_DAILY","PERIOD"]
[340318370,1729039850951,-500.0,0.00024268,2]
[340318372,1729039850960,-500.0,0.00024268,2]
[340318374,1729039850969,-365.9217544,0.00024268,2]
[340318376,1729039850979,-507.93210962,0.00024268,2]
[340318378,1729039850988,-500.51734633,0.00024268,2]
[340318380,1729039850997,-349.108078,0.00024268,7]
[340318382,1729039851008,-349.108078,0.00024268,7]
[340318384,1729039851017,-324.286464,0.00024268,7]
[340318386,1729039851026,-500.0,0.00024268,2]
[340318387,1729039851035,-324.286464,0.00024268,7]
[340318389,1729039851045,-500.0,0.00024268,2]
[340318391,1729039851054,-197.862983,0.00024268,7]
[340318393,1729039851063,-197.862983,0.00024268,7]
[340318395,1729039851072,-536.15661233,0.00024268,2]
[340318397,1729039851081,-151.0,0.00024268,7]
[340318399,1729039851090,-151.0,0.00024268,7]
[340318401,1729039851100,-1984.28616,0.00024268,7]
[340318403,1729039851109,-517.34198336,0.00024268,2]
[340318405,1729039851119,-500.0,0.00024268,2]
[340318407,1729039851128,-8146.43303,0.00024268,7]
[340318409,1729039851137,-151.401652,0.00024268,2]
[340318411,1729039851149,-1984.28616,0.00024268,7]
[340318413,1729039851160,-8146.43303,0.00024268,7]
[340318415,1729039851169,-1467.739442,0.00024268,7]
[340318417,1729039851179,-1467.739442,0.00024268,7]
[340318419,1729039851189,-500.0,0.00024268,2]
[340318421,1729039851198,-370.95460949,0.00024268,2]
[340318423,1729039851207,-500.0,0.00024268,2]
[340318424,1729039851217,-600.0,0.00024278,2]
[340318426,1729039851228,-200.0,0.0002428,10]
[340318428,1729039851237,-152.058,0.00024282,2]
[340318430,1729039851247,-527.0,0.00024282,2]
[340318432,1729039851256,-1806.0,0.00024282,2]
[340318434,1729039851265,-1157.0,0.00024282,2]
[340318436,1729039851274,-172.222,0.00024282,2]
[340318438,1729039851283,-11890.767,0.00024282,2]
[340318439,1729039851292,-186.725,0.00024282,2]
[340318441,1729039851303,-250.0,0.00024282,2]
[340318443,1729039851312,-210.3259639,0.00024287,2]
[340318444,1729039851321,-210.3259639,0.00024287,2]
[340318446,1729039851330,-7390.84245368,0.00024319,2]
[340318448,1729039851340,-3815.26,0.00024326,2]
[340318450,1729039851350,-200.317716,0.00024362,7]
[340318451,1729039851359,-200.317716,0.00024362,7]
[340318452,1729039851369,-823.827479,0.00024362,7]
[340318453,1729039851378,-823.827479,0.00024362,7]
[340318454,1729039851387,-3792.536979,0.00024362,7]
[340318455,1729039851397,-3792.536979,0.00024362,7]
[340318456,1729039851407,-150.112241,0.000244,3]
[340318457,1729039851416,-306.0,0.00024466,2]
[340318458,1729039851426,-150.0,0.00024468,2]
[340318459,1729039851436,-5409.03757473,0.00024499,3]
[340318460,1729039851446,-3000.0,0.000245,2]
[340318461,1729039851456,-3000.0,0.000245,2]
[340318462,1729039851466,-150.0,0.000245,9]
[340318463,1729039851476,-1803.01252491,0.00024509,3]
[340318464,1729039851486,-500.0,0.00024509,2]
[340318465,1729039851496,-502.19082528,0.00024509,2]
[340318466,1729039851505,-502.86339758,0.00024509,2]
[340318467,1729039851515,-512.30514713,0.00024509,2]
[340318468,1729039851524,-500.0,0.00024509,2]
[340318469,1729039851535,-500.0,0.00024509,2]
[340318470,1729039851544,-500.0,0.00024509,2]
[340318471,1729039851553,-500.0,0.00024509,2]
[340318472,1729039851562,-500.0,0.00024509,2]
[340318473,1729039851571,-537.43,0.00024509,2]
[340318474,1729039851581,-71805.78,0.00024509,2]
[340318475,1729039851591,-500.0,0.00024509,2]
[340318476,1729039851601,-6469.83,0.00024509,2]
[340318477,1729039851610,-221.62682436,0.00024509,2]
[340318478,1729039851620,-1565.97,0.00024509,2]
[340318479,1729039851630,-4691.55,0.00024509,2]
[340318480,1729039851639,-500.65052945,0.00024509,2]
[340318481,1729039851649,-500.0,0.00024509,2]
[340318482,1729039851659,-500.0,0.00024509,2]
[340318483,1729039851669,-500.0,0.00024509,2]
[340318484,1729039851677,-2366.62,0.00024509,2]
[340318485,1729039851687,-500.0,0.00024509,2]
[340318486,1729039851697,-500.0,0.00024509,2]
[340318487,1729039851706,-500.0,0.00024509,2]
[340318488,1729039851716,-500.0,0.00024509,2]
[340318489,1729039851725,-151.0,0.00024509,7]
[340318490,1729039851735,-500.0,0.00024509,2]
[340318491,1729039851745,-397.65798379,0.00024509,2]
[340318492,1729039851754,-500.0,0.00024509,2]
[340318493,1729039851763,-500.0,0.00024509,2]
[340318494,1729039851772,-500.0,0.00024509,2]
[340318495,1729039851781,-500.0,0.00024509,2]
[340318496,1729039851791,-505.85624222,0.00024509,2]
[340318497,1729039851800,-500.0,0.00024509,2]
[340318498,1729039851809,-383.54651956,0.00024509,2]
[340318499,1729039851819,-2157.9,0.00024509,2]
[340318500,1729039851828,-500.0,0.00024509,2]
[340318501,1729039851838,-500.0,0.00024509,2]
[340318502,1729039851847,-500.0,0.00024509,2]
[340318503,1729039851856,-500.0,0.00024509,2]
[340318504,1729039851866,-349.108078,0.00024509,7]
[340318505,1729039851875,-500.0,0.00024509,2]
[340318506,1729039851885,-349.108078,0.00024509,7]
[340318507,1729039851895,-500.0,0.00024509,2]
[340318508,1729039851904,-324.286464,0.00024509,7]
[340318509,1729039851913,-1703.53,0.00024509,2]
[340318510,1729039851922,-324.286464,0.00024509,7]
[340318511,1729039851932,-197.862983,0.00024509,7]
[340318512,1729039851941,-500.0,0.00024509,2]
[340318513,1729039851951,-500.0,0.00024509,2]
[340318514,1729039851961,-197.862983,0.00024509,7]
[340318515,1729039851970,-151.0,0.00024509,7]
[340318516,1729039851979,-500.0,0.00024509,2]
[340318517,1729039851988,-500.0,0.00024509,2]
[340318518,1729039851997,-151.0,0.00024509,7]
[340318519,1729039852006,-6918.72,0.00024509,2]
[340318520,1729039852015,-500.0,0.00024509,2]
[340318521,1729039852024,-500.0,0.00024509,2]
[340318522,1729039852033,-1984.28616,0.00024509,7]
[340318523,1729039852126,-500.0,0.00024509,2]
[340318524,1729039852136,-8146.43303,0.00024509,7]
[340318525,1729039852148,-1984.28616,0.00024509,7]
[340318526,1729039852160,-500.0,0.00024509,2]
[340318527,1729039852169,-7722.81651726,0.00024509,7]
[340318528,1729039853300,-527.49004666,0.00023171,2]
[340318529,1729039853310,-500.0,0.00023172,2]
[340318530,1729039853540,-500.0,0.00023172,2]
[340318531,1729039853556,-500.0,0.00023446,2]
[340318532,1729039853566,-500.0,0.00023446,2]
[340318533,1729039853576,-500.0,0.00023719,2]
[340318534,1729039853586,-500.0,0.0002372,2]
[340318535,1729039853595,-500.0,0.0002372,2]
[340318536,1729039853605,-505.24708791,0.00023993,2]
[340318537,1729039853614,-502.85122104,0.00023994,2]
[340318538,1729039853624,-500.0,0.00023994,2]
[340318539,1729039853634,-500.0,0.00024268,2]
[340318540,1729039853643,-423.61651274,0.00024509,7]
[340318541,1729039853653,-500.0,0.00024509,2]
[340318542,1729039853664,-591.77401287,0.00024509,2]
[340318543,1729039853673,-1467.739442,0.00024509,7]
[340318544,1729039853683,-500.0,0.00024509,2]
[340318545,1729039853692,-939.07231953,0.00024509,7]
[340318548,1729039972798,500.0,0.0002394,120]
[340318549,1729039973536,500.0,0.0002394,120]
[340318550,1729039974291,500.0,0.0002394,120]
[340318551,1729039975052,500.0,0.0002394,120]
[340318552,1729039975812,500.0,0.0002394,120]
[340318553,1729039976569,500.0,0.0002394,120]
[340318554,1729039977333,500.0,0.0002394,120]
[340318555,1729039978125,500.0,0.0002394,120]
[340318556,1729039978881,500.0,0.0002394,120]
[340318557,1729039979650,500.0,0.0002394,120]
[340318558,1729039980396,500.0,0.0002394,120]
[340318559,1729039981168,500.0,0.0002394,120]
[340318560,1729039981911,500.0,0.0002394,120]
[340318562,1729039982653,500.0,0.0002394,120]
[340318563,1729039982800,150.5,0.00023709,120]
[340318564,1729039983266,150.5,0.00023699,120]
[340318565,1729039983404,500.0,0.0002394,120]
[340318566,1729039983813,150.5,0.00023689,120]
[340318567,1729039984161,500.0,0.0002394,120]
[340318568,1729039985328,500.0,0.0002394,120]
[340318569,1729039986117,500.0,0.0002394,120]
[340318570,1729039986870,500.0,0.0002394,120]
[340318571,1729039988027,500.0,0.0002394,120]
[340318574,1729040001106,150.0,0.00022,120]
[340318576,1729040054047,500.0,0.0002394,120]
[340318577,1729040054807,500.0,0.0002394,120]
[340318578,1729040055552,500.0,0.0002394,120]
[340318579,1729040056326,500.0,0.0002394,120]
[340318580,1729040057061,500.0,0.0002394,120]
[340318581,1729040057821,500.0,0.0002394,120]
[340318582,1729040058572,500.0,0.0002394,120]
[340318583,1729040059332,500.0,0.0002394,120]
[340318584,1729040060189,500.0,0.0002394,120]
[340318585,1729040060944,500.0,0.0002394,120]
[340318586,1729040061730,185.54,0.0002394,120]
[340318588,1729040071481,151.0,0.00022,120]
[340318589,1729040122944,286.871636,0.00027,60]
[340318590,1729040131555,166.647426,0.00021918,2]
[340318591,1729040134893,286.871636,0.00027,60]
[340318592,1729040138637,286.871636,0.00027,60]
[340318593,1729040142051,153.0,0.00022,120]
[340318594,1729040142502,286.871636,0.00027,60]
[340318595,1729040146700,286.871636,0.00027,60]
[340318596,1729040146737,158.0,0.00022,2]
[340318598,1729040446064,457.0,0.00022,2]
[340318605,1729040702139,150.5,0.00023139,120]
[340318606,1729040702621,150.5,0.00023129,120]
[340318607,1729040703067,150.5,0.00023119,120]
[340318608,1729040772217,832.532864,0.00021933,2]
[340318791,1729041039037,-164.312557,0.00022098,2]
[340318792,1729041039047,-457.0,0.00022192,2]
[340318794,1729041039056,-164.312557,0.00022386,2]
[340318795,1729041039065,-65.06359733,0.00022618,2]
[340318796,1729041039076,-584.23493398,0.00022618,2]
[340318832,1729041040804,-183.23433269,0.00022618,2]
[340318834,1729041040815,-164.312557,0.00022673,2]
[340318837,1729041040825,-1000.0,0.0002287,2]
[340318839,1729041040835,-164.312557,0.00022961,2]
[340318841,1729041040845,-150.0,0.00023,2]
[340318843,1729041040855,-158.0,0.00023014,2]
[340318844,1729041040864,-457.0,0.00023014,2]
[340318845,1729041040877,-1493.63703734,0.00023033,2]
[340318846,1729041040887,-979.93896326,0.0002307,2]
[340318847,1729041040899,-20.06103674,0.0002307,2]
[340318848,1729041040909,-300.0,0.00023128,2]
[340318849,1729041040920,-300.0,0.00023128,2]
[340318850,1729041040930,-207.0,0.00023128,2]
[340318851,1729041040941,-505.16,0.00023129,2]
[340318852,1729041040952,-13183.98683712,0.00023129,3]
[340318853,1729041040973,-8117.38494878,0.00023129,3]
[340318854,1729041040982,-707.78998071,0.0002313,2]
[340318855,1729041040993,-21301.3717859,0.0002313,3]
[340318856,1729041041004,-21301.3717859,0.00023132,3]
[340318857,1729041041015,-500.0,0.00023137,2]
[340318858,1729041041026,-500.0,0.00023137,2]
[340318859,1729041041037,-369.9081119,0.00023137,2]
[340318860,1729041041048,-500.0,0.00023137,2]
[340318861,1729041041057,-500.0,0.00023137,2]
[340318863,1729041041066,-500.0,0.00023137,2]
[340318865,1729041041077,-500.0,0.00023137,2]
[340318866,1729041041088,-500.0,0.00023137,2]
[340318867,1729041041098,-500.0,0.00023137,2]
[340318869,1729041041107,-500.0,0.00023137,2]
[340318872,1729041041118,-500.0,0.00023137,2]
[340318874,1729041041130,-500.0,0.00023137,2]
[340318876,1729041041140,-500.0,0.00023137,2]
[340318878,1729041041151,-500.0,0.00023137,2]
[340318880,1729041041162,-500.0,0.00023137,2]
[340318882,1729041041172,-500.0,0.00023137,2]
[340318884,1729041041182,-500.0,0.00023137,2]
[340318886,1729041041192,-500.0,0.00023137,2]
[340318888,1729041041201,-500.0,0.00023137,2]
[340318890,1729041041211,-500.0,0.00023137,2]
[340318892,1729041041220,-500.0,0.00023137,2]
[340318894,1729041041229,-500.0,0.00023137,2]
[340318896,1729041041239,-500.0,0.00023137,2]
[340318898,1729041041249,-500.0,0.00023137,2]
[340318900,1729041041258,-500.0,0.00023137,2]
[340318902,1729041041268,-500.0,0.00023137,2]
[340318904,1729041041278,-500.0,0.00023137,2]
[340318906,1729041041287,-500.0,0.00023137,2]
[340318908,1729041041296,-182.11006227,0.00023137,2]
[340318910,1729041041306,-500.0,0.00023137,2]
[340318912,1729041041315,-500.0,0.00023137,2]
[340318913,1729041041324,-500.0,0.00023137,2]
[340318914,1729041041333,-500.0,0.00023137,2]
[340318915,1729041041343,-500.0,0.00023137,2]
[340318916,1729041041352,-500.0,0.00023137,2]
[340318917,1729041041361,-500.0,0.00023137,2]
[340318918,1729041041370,-500.0,0.00023137,2]
[340318919,1729041041379,-500.0,0.00023137,2]
[340318920,1729041041388,-500.0,0.00023137,2]
[340318921,1729041041398,-500.0,0.00023137,2]
[340318922,1729041041407,-500.0,0.00023137,2]
[340318923,1729041041417,-500.0,0.00023137,2]
[340318924,1729041041427,-500.0,0.00023137,2]
[340318925,1729041041436,-500.0,0.00023137,2]
[340318926,1729041041447,-500.0,0.00023137,2]
[340318928,1729041041456,-500.0,0.00023137,2]
[340318930,1729041041465,-594.78500228,0.00023137,2]
[340318932,1729041041476,-500.0,0.00023137,2]
[340318934,1729041041486,-224.63926052,0.00023137,2]
[340318936,1729041041496,-63904.1153576,0.00023138,3]
[340318938,1729041041507,-500.0,0.00023138,2]
[340318940,1729041041517,-500.0,0.00023138,2]
[340318942,1729041041528,-500.0,0.00023138,2]
[340318944,1729041041539,-1061.83,0.00023138,2]
[340318946,1729041041550,-500.0,0.00023138,2]
[340318948,1729041041562,-663.73,0.00023138,2]
[340318951,1729041041572,-500.0,0.00023138,2]
[340318953,1729041041581,-14988.7,0.00023138,2]
[340318955,1729041041591,-500.0,0.00023138,2]
[340318957,1729041041604,-500.0,0.00023138,2]
[340318959,1729041041615,-1002.56,0.00023138,2]
[340318961,1729041041625,-521.85229323,0.00023138,2]
[340318963,1729041041636,-511.55870194,0.00023138,2]
[340318965,1729041041646,-500.0,0.00023138,2]
[340318967,1729041041657,-42602.7435717,0.00023139,3]
[340318969,1729041041667,-267.42900254,0.00023139,2]
[340318971,1729041041676,-287.69240092,0.00023139,2]
[340318973,1729041041685,-156.3672962,0.00023139,2]
[340318975,1729041041695,-551.21320979,0.00023139,2]
[340318977,1729041041705,-500.0,0.00023139,2]
[340318979,1729041041715,-257.54820332,0.00023139,2]
[340318981,1729041041724,-30991.14068061,0.0002314,3]
[340319165,1729041047390,286.0,0.00022,2]
[340319166,1729041047794,160.0,0.00022,2]
[340319171,1729041220002,153.0,0.00022,120]
[340319185,1729041587988,978.2451333,0.00021952,2]
[340319186,1729041646363,250.0,0.00022,2]
[340319189,1729041796427,200.0,0.00022,2]
[340319191,1729041842817,164.312557,0.00021998,2]
[340319192,1729041858113,166.666667,0.00021918,2]
[340319193,1729041895626,277.510954,0.00021892,2]
[340319485,1729042240280,-250.0,0.00022192,2]
[340319487,1729042240291,-6179.70277114,0.00022425,2]
[340319490,1729042240303,-277.510954,0.00022577,2]
[340319492,1729042240314,-6179.70277114,0.00022645,2]
[340319494,1729042240324,-6179.70277116,0.00022884,2]
[340319496,1729042240334,-496.60437377,0.00022896,2]
[340319498,1729042240343,-150.0,0.00022981,2]
[340319500,1729042240354,-250.0,0.00023014,2]
[340319502,1729042240368,-504.14575391,0.00023015,2]
[340319504,1729042240377,-508.16354622,0.00023015,2]
[340319506,1729042240387,-500.0,0.00023015,2]
[340319508,1729042240398,-500.0,0.00023015,2]
[340319510,1729042240408,-500.0,0.00023015,2]
[340319512,1729042240420,-500.0,0.00023015,2]
[340319514,1729042240430,-513.03805689,0.00023015,2]
[340319516,1729042240442,-503.15885715,0.00023015,2]
[340319518,1729042240451,-500.54970948,0.00023015,2]
[340319521,1729042240461,-712.37071675,0.00023016,2]
[340319523,1729042240470,-500.0,0.00023016,2]
[340319524,1729042240479,-500.0,0.00023016,2]
[340319526,1729042240489,-14988.7,0.00023016,2]
[340319529,1729042240499,-500.0,0.00023016,2]
[340319531,1729042240510,-1004.04,0.00023016,2]
[340319533,1729042240521,-225.20900886,0.00023016,2]
[340319535,1729042240531,-500.0,0.00023016,2]
[340319536,1729042240542,-1000.0,0.00023017,2]
[340319537,1729042240552,-500.0,0.00023026,2]
[340319538,1729042240562,-500.0,0.00023026,2]
[340319540,1729042240571,-1061.83,0.00023026,2]
[340319542,1729042240580,-500.0,0.00023026,2]
[340319544,1729042240590,-663.73,0.00023026,2]
[340319546,1729042240601,-601.423481,0.00023026,2]
[340319548,1729042240612,-530.46482161,0.00023026,2]
[340319550,1729042240623,-512.96729974,0.00023026,2]
[340319553,1729042240634,-71842.75,0.00023026,2]
[340319555,1729042240644,-150.112233,0.000231,4]
[340319557,1729042240656,-150.112233,0.000231,3]
[340319559,1729042240666,-150.112241,0.000231,5]
[340319561,1729042240675,-500.0,0.00023103,2]
[340319563,1729042240686,-500.0,0.00023103,2]
[340319566,1729042240700,-500.0,0.00023103,2]
[340319567,1729042240710,-500.0,0.00023103,2]
[340319569,1729042240721,-500.0,0.00023103,2]
[340319570,1729042240731,-500.0,0.00023103,2]
[340319571,1729042240741,-500.0,0.00023103,2]
[340319572,1729042240750,-500.0,0.00023103,2]
[340319573,1729042240760,-223.00082407,0.00023103,2]
[340319574,1729042240771,-500.0,0.00023103,2]
[340319575,1729042240780,-500.0,0.00023103,2]
[340319576,1729042240790,-500.0,0.00023103,2]
[340319577,1729042240800,-500.0,0.00023103,2]
[340319578,1729042240810,-500.0,0.00023103,2]
[340319579,1729042240819,-500.0,0.00023103,2]
[340319580,1729042240829,-500.0,0.00023103,2]
[340319581,1729042240839,-500.0,0.00023103,2]
[340319582,1729042240849,-20236.3031966,0.00023104,3]
[340319583,1729042240859,-39715.9324342,0.00023104,3]
[340319584,1729042240871,-287.69240092,0.00023106,2]
[340319585,1729042240880,-500.0,0.00023106,2]
[340319586,1729042240890,-257.54820332,0.00023106,2]
[340319587,1729042240899,-551.21320979,0.00023106,2]
[340319588,1729042240909,-267.42900254,0.00023106,2]
[340319589,1729042240919,-156.3672962,0.00023106,2]
[340319590,1729042240930,-20236.3031966,0.00023106,3]
[340319591,1729042240941,-17827.00332985,0.00023106,3]
[340319669,1729042246099,-270.2525765,0.00023015,2]
[340319672,1729042246112,-231.11998818,0.00023015,2]
[340319674,1729042246123,-152.40021186,0.00023015,2]
[340319676,1729042246136,-302.0,0.00023015,2]
[340319775,1729042247239,157.0,0.00022,2]
[340320103,1729042278220,500.0,0.0002394,120]
[340320104,1729042279022,500.0,0.0002394,120]
[340320105,1729042279764,500.0,0.0002394,120]
[340320106,1729042280517,500.0,0.0002394,120]
[340320107,1729042281269,500.0,0.0002394,120]
[340320108,1729042282025,500.0,0.0002394,120]
[340320109,1729042282782,500.0,0.0002394,120]
[340320110,1729042283587,457.11,0.0002394,120]
[340320111,1729042290198,155.0,0.00022,120]
[340320114,1729042416498,277.510954,0.00021944,2]
[340320116,1729042460555,252.7795745,0.00021944,2]
[340320128,1729042734307,156.33,0.00027,60]
[340320133,1729042820866,154.12,0.00022,2]
[340320143,1729043048719,236.0396328,0.00021989,2]
[340320149,1729043365465,155.0,0.00022,120]
[340320240,1729043440473,-190.9535972,0.00022094,2]
[340320241,1729043440483,-479.28159975,0.00022565,2]
[340320242,1729043440493,-302.0,0.00022785,2]
[340320243,1729043440503,-7490.50844696,0.00022808,2]
[340320244,1729043440513,-1320.73853752,0.00022895,2]
[340320245,1729043440523,-150.59993605,0.00022897,2]
[340320246,1729043440532,-153.0,0.00022899,2]
[340320247,1729043440542,-1000.0,0.000229,2]
[340320248,1729043440551,-375.98300668,0.00022989,2]
[340320249,1729043440561,-500.0,0.00022989,2]
[340320250,1729043440571,-500.0,0.00022989,2]
[340320251,1729043440581,-500.0,0.00022989,2]
[340320252,1729043440591,-500.0,0.00022989,2]
[340320253,1729043440723,-500.0,0.00022989,2]
[340320254,1729043440733,-500.0,0.00022989,2]
[340320255,1729043440744,-500.0,0.00022989,2]
[340320256,1729043440754,-500.0,0.00022989,2]
[340320257,1729043440763,-519.77459115,0.00022989,2]
[340320258,1729043440772,-500.0,0.00022989,2]
[340320259,1729043440782,-500.0,0.00022989,2]
[340320260,1729043440792,-500.0,0.00022989,2]
[340320261,1729043440801,-500.0,0.00022989,2]
[340320262,1729043440811,-500.0,0.00022989,2]
[340320263,1729043440822,-500.0,0.00022989,2]
[340320264,1729043440832,-500.0,0.00022989,2]
[340320265,1729043440841,-500.0,0.00022989,2]
[340320266,1729043440851,-500.0,0.00022989,2]
[340320267,1729043440861,-500.0,0.00022989,2]
[340320268,1729043440870,-500.0,0.00022989,2]
[340320269,1729043440880,-500.0,0.00022989,2]
[340320270,1729043440889,-500.0,0.00022989,2]
[340320271,1729043440901,-500.0,0.00022989,2]
[340320272,1729043440912,-500.0,0.00022989,2]
[340320273,1729043440922,-500.0,0.00022989,2]
[340320274,1729043440932,-500.0,0.00022989,2]
[340320275,1729043440942,-500.0,0.00022989,2]
[340320276,1729043440952,-500.0,0.00022989,2]
[340320277,1729043440961,-500.0,0.00022989,2]
[340320278,1729043440971,-500.0,0.00022989,2]
[340320279,1729043440980,-500.0,0.00022989,2]
[340320280,1729043440990,-300.0,0.00022989,2]
[340320281,1729043440999,-474.91381117,0.0002299,2]
[340320282,1729043441009,-54291.2867574,0.0002299,3]
[340320283,1729043441019,-70811.2542868,0.0002299,3]
[340320284,1729043441028,-258.05547475,0.00022992,2]
[340320285,1729043441038,-553.41773044,0.00022992,2]
[340320286,1729043441048,-500.0,0.00022992,2]
[340320287,1729043441058,-292.41818004,0.00022992,2]
[340320288,1729043441067,-267.86593041,0.00022992,2]
[340320289,1729043441077,-159.31226133,0.00022992,2]
[340320290,1729043441086,-81436.9301362,0.00022993,3]
[340320291,1729043441095,-106216.88143,0.00022993,3]
[340320292,1729043441105,-207.45716264,0.00022994,2]
[340320293,1729043441114,-500.0,0.00022994,2]
[340320294,1729043441124,-1183.1,0.00022994,2]
[340320295,1729043441133,-742.95,0.00022994,2]
[340320296,1729043441143,-16758.7,0.00022994,2]
[340320297,1729043441152,-500.0,0.00022994,2]
[340320298,1729043441161,-500.0,0.00022994,2]
[340320299,1729043441171,-962.21,0.00022994,2]
[340320300,1729043441180,-500.0,0.00022994,2]
[340320301,1729043441190,-500.0,0.00022994,2]
[340320302,1729043441199,-539.75,0.00022994,2]
[340320303,1729043441209,-68849.3,0.00022994,2]
[340320304,1729043441218,-500.0,0.00022994,2]
[340320305,1729043441228,-27145.6433787,0.00022994,3]
[340320306,1729043441237,-35405.6271434,0.00022994,3]
[340320307,1729043441247,-500.0,0.00022995,2]
[340320308,1729043441257,-500.0,0.00022995,2]
[340320309,1729043441267,-556.28666421,0.00022995,2]
[340320310,1729043441277,-500.0,0.00022995,2]
[340320311,1729043441287,-500.0,0.00022995,2]
[340320312,1729043441296,-500.0,0.00022995,2]
[340320313,1729043441305,-500.0,0.00022995,2]
[340320314,1729043441314,-500.0,0.00022995,2]
[340320315,1729043441323,-500.0,0.00022995,2]
[340320316,1729043441332,-500.0,0.00022995,2]
[340320317,1729043441341,-500.0,0.00022995,2]
[340320318,1729043441351,-500.0,0.00022995,2]
[340320319,1729043441360,-500.0,0.00022995,2]
[340320320,1729043441369,-500.0,0.00022995,2]
[340320321,1729043441378,-500.0,0.00022995,2]
[340320322,1729043441387,-500.0,0.00022995,2]
[340320323,1729043441396,-500.0,0.00022995,2]
[340320324,1729043441406,-500.0,0.00022995,2]
[340320325,1729043441416,-500.0,0.00022995,2]
[340320326,1729043441426,-500.0,0.00022995,2]
[340320327,1729043441435,-825.95,0.00022995,2]
[340320328,1729043441444,-500.0,0.00022995,2]
[340320329,1729043441454,-576.71981691,0.00022995,2]
[340320330,1729043441463,-500.0,0.00022995,2]
[340320331,1729043441472,-500.0,0.00022995,2]
[340320332,1729043441482,-508.20419651,0.00022995,2]
[340320333,1729043441491,-500.0,0.00022995,2]
[340320334,1729043441500,-509.05790744,0.00022995,2]
[340320335,1729043441509,-500.0,0.00022995,2]
[340320336,1729043441518,-500.0,0.00022995,2]
[340320337,1729043441527,-500.0,0.00022995,2]
[340320338,1729043441536,-500.0,0.00022995,2]
[340320339,1729043441546,-500.0,0.00022995,2]
[340320340,1729043441555,-370.12401111,0.00022995,2]
[340320341,1729043441564,-500.0,0.00022995,2]
[340320342,1729043441573,-500.0,0.00022995,2]
[340320343,1729043441586,-500.0,0.00022995,2]
[340320344,1729043441596,-500.0,0.00022995,2]
[340320345,1729043441607,-500.0,0.00022995,2]
[340320346,1729043441617,-1361.09,0.00022995,2]
[340320347,1729043441627,-500.0,0.00022995,2]
[340320348,1729043441637,-500.0,0.00022995,2]
[340320349,1729043441646,-293.09311375,0.00022995,2]
[340320350,1729043441655,-500.0,0.00022995,2]
[340320351,1729043441665,-500.0,0.00022995,2]
[340320352,1729043441675,-3325.18,0.00022995,2]
[340320353,1729043441685,-3325.18,0.00022995,2]
[340320354,1729043441695,-3325.18,0.00022995,2]
[340320355,1729043441704,-500.0,0.00022995,2]
[340320356,1729043441714,-500.0,0.00022995,2]
[340320357,1729043441724,-500.0,0.00022995,2]
[340320358,1729043441733,-500.0,0.00022995,2]
[340320359,1729043441743,-500.0,0.00022995,2]
[340320360,1729043441752,-500.0,0.00022995,2]
[340320361,1729043441761,-500.0,0.00022995,2]
[340320362,1729043441771,-313.54997156,0.00022995,2]